Workbook

Sheet Topics
A1: Topics | B1: Office Video # | C1: Excel Basics Video #
A2: Style Formatting | B2: 28 | C2: 10
A3: Number Formatting | B3: 29 | C3: 11
A4: ROUND Function | B4: 30 | C4: 12
A5: Formula Elements and Types | B5: 31 | C5: 13
A6: Math | B6: 32 | C6: 14
A7: Entering Cell References Into Formulas | B7: 33 | C7: 15
A8: Flash Fill (New in Excel 2013) | B8: 34 | C8: 16

Sheet Style Formatting
A1: Office 2013 Class #28: Excel Basics 10:
A2: Style Formatting: By Hand, Cell, Table & Conditional Formatting
A4: Style Formatting: Bold labels and use Borders | G4: Wrap Text in cell: multiple line in a cell | K4: Style: Column width | O4: Accounting Borders | V4: Table Format | AA4: Cell Styles are great if you use the | AE4: Built-in Conditional Formatting | AI4: Criteria | AJ4: 18000
A5: Number Formatting: Accounting | G5: 1) While typing: Alt + Enter | V5: (really just a proper data set converted to an Excel Table) | AA5: same Style and Number formatting over and over
G6: 20 Command button in Alignment group in Home Ribbon Tab | AE6: Data Bars | AG6: Top 10% | AI6: ="Greater than "&FIXED(AJ4,0) -> Greater than 18,000 | AL6: Losses
B8: Jan | C8: Feb | D8: Mar | E8: Apr | G8: Boomerang Product Name | H8: Employee Name | I8: Sales Amount | K8: Date | L8: Product | M8: Sales | O8: Date | P8: Check # | Q8: Description | R8: Deduction | S8: Addition | T8: Balance | V8: Date | W8: Product | X8: Sales | AA8: Date | AB8: Product | AC8: Sales | AE8: Sales | AG8: Sales | AI8: Sales | AK8: Stock | AL8: Buy Price | AM8: Price today | AN8: Quantity | AO8: Profit
A9: Net Sales | B9: 5689 | C9: 2569 | D9: 6587 | E9: 8700 | G9: Majestic Beaut | H9: Jo | I9: 505 | K9: 2013-10-29 | L9: Flying Eagle | M9: 13490 | O9: 2013-10-01 | T9: 5000.5 | V9: 2013-10-29 | W9: Flying Eagle | X9: 13490 | AA9: 2013-10-29 | AB9: Flying Eagle | AC9: 13490 | AE9: 13490 | AG9: 13490 | AI9: 18000 | AK9: GOOG | AL9: 755 | AM9: 1015 | AN9: 700 | AO9: =AN9*(AM9-AL9) -> 182000
A10: Operating Expenses | B10: 1801.15 | C10: 2099.15 | D10: 4100.3 | E10: 4245 | G10: Delicate Arch Deluxe | H10: Moe | I10: 657 | K10: 2013-10-29 | L10: Smooth Arch | M10: 9077 | O10: 2013-10-03 | P10: 2150 | Q10: Pay Rent | R10: 500 | T10: =IF(O10<>"",T9+S10-R10,"") -> 4500.5 | V10: 2013-10-29 | W10: Smooth Arch | X10: 9077 | AA10: 2013-10-29 | AB10: Smooth Arch | AC10: 9077 | AE10: 9077 | AG10: 9077 | AI10: 9077 | AK10: GE | AL10: 22 | AM10: 29.1 | AN10: 2200 | AO10: 15620
A11: Administrating Expenses | B11: 537.8 | C11: 513.8 | D11: 1617.4 | E11: 1740 | G11: Carlota Doublers | H11: Sheliadawn | I11: 329 | K11: 2013-10-29 | L11: Flying Eagle | M11: 10167 | O11: 2013-10-03 | P11: ATM124 | Q11: withdraw | R11: 120 | T11: 4380.5 | V11: 2013-10-29 | W11: Flying Eagle | X11: 10167 | AA11: 2013-10-29 | AB11: Flying Eagle | AC11: 10167 | AE11: 10167 | AG11: 10167 | AI11: 10167 | AK11: KO | AL11: 36 | AM11: 32.4 | AN11: 300 | AO11: -1080
A12: Other | B12: 253.35 | C12: 385.35 | D12: =D9-D10-D11 -> 869.3 | E12: 1305 | G12: Majestic Beaut | H12: Tina | I12: 618 | K12: 2013-10-29 | L12: Flying Eagle | M12: 13248 | O12: 2013-10-04 | Q12: Rev | S12: 654.25 | T12: 5034.75 | V12: 2013-10-29 | W12: Flying Eagle | X12: 13248 | AA12: 2013-10-29 | AB12: Flying Eagle | AC12: 13248 | AE12: 13248 | AG12: 13248 | AI12: 13248 | AK12: MSFT | AL12: 36 | AM12: 36 | AN12: 4000 | AO12: 0
A13: Total Expenses | B13: =SUM(B10:B12) -> 2592.3 | C13: 2998.3 | D13: 6587 | E13: 7290 | G13: Delicate Arch Deluxe | H13: Tina | I13: 888 | K13: 2013-10-29 | L13: Smooth Arch | M13: 6360 | V13: 2013-10-29 | W13: Smooth Arch | X13: 6360 | AA13: 2013-10-29 | AB13: Smooth Arch | AC13: 6360 | AE13: 6360 | AG13: 6360 | AI13: 6360 | AK13: KK | AL13: 51 | AM13: 42 | AN13: 700 | AO13: -6300
A14: Net Income | B14: =B9-B13 -> 3096.7 | C14: -429.3 | D14: 0 | E14: 1410 | G14: Delicate Arch Deluxe | H14: Moe | I14: 138 | K14: 2013-10-29 | L14: Smooth Arch | M14: 11740 | V14: 2013-10-29 | W14: Smooth Arch | X14: 11740 | AA14: 2013-10-29 | AB14: Smooth Arch | AC14: 11740 | AE14: 11740 | AG14: 11740 | AI14: 11740 | AK14: SW | AL14: 31 | AM14: 17 | AN14: 400 | AO14: -5600
G15: Quad Freestyle | H15: Sheliadawn | I15: 125 | K15: 2013-10-29 | L15: Flying Eagle | M15: 5325 | V15: 2013-10-29 | W15: Flying Eagle | X15: 5325 | AA15: 2013-10-29 | AB15: Flying Eagle | AC15: 5325 | AE15: 5325 | AG15: 5325 | AI15: 5325
C16: or | G16: Quad Freestyle | H16: Sheliadawn | I16: 238 | AE16: 7873 | AG16: 7873 | AI16: 7873
AE17: 19043 | AG17: 19043 | AI17: 19043
B18: Jan | C18: Feb | D18: Mar | E18: Apr | AE18: 12143 | AG18: 12143 | AI18: 12143
A19: Net Sales | B19: 5689 | C19: 2569 | D19: 6587 | E19: 8700 | AE19: 10300 | AG19: 10300 | AI19: 10300
A20: Operating Expenses | B20: 1801.15 | C20: 2099.15 | D20: 4100.3 | E20: 4245 | AE20: 10145 | AG20: 10145 | AI20: 10145
A21: Administrating Expenses | B21: 537.8 | C21: 513.8 | D21: 1617.4 | E21: 1740 | AE21: 14309 | AG21: 14309 | AI21: 14309
A22: Other | B22: 253.35 | C22: 385.35 | D22: =D19-D20-D21 -> 869.3 | E22: 1305 | AE22: 11711 | AG22: 11711 | AI22: 11711
A23: Total Expenses | B23: =SUM(B20:B22) -> 2592.3 | C23: 2998.3 | D23: 6587 | E23: 7290 | AE23: 19160 | AG23: 19160 | AI23: 19160
A24: Net Income | B24: =B19-B23 -> 3096.7 | C24: -429.3 | D24: 0 | E24: 1410 | AE24: 19310 | AG24: 19310 | AI24: 19310
AE25: 13628 | AG25: 13628 | AI25: 13628
C26: or | AE26: 19347 | AG26: 19347 | AI26: 19347
AE27: 10107 | AG27: 10107 | AI27: 10107
B28: Jan | C28: Feb | D28: Mar | E28: Apr | AE28: 18719 | AG28: 18719 | AI28: 18719
A29: Net Sales | B29: 5689 | C29: 2569 | D29: 6587 | E29: 8700 | AE29: 13426 | AG29: 13426 | AI29: 13426
A30: Operating Expenses | B30: 1801.15 | C30: 2099.15 | D30: 4100.3 | E30: 4245 | AE30: 12627 | AG30: 12627 | AI30: 12627
A31: Administrating Expenses | B31: 537.8 | C31: 513.8 | D31: 1617.4 | E31: 1740 | AE31: 11723 | AG31: 11723 | AI31: 11723
A32: Other | B32: 253.35 | C32: 385.35 | D32: =D29-D30-D31 -> 869.3 | E32: 1305 | AE32: 7981 | AG32: 7981 | AI32: 7981
A33: Total Expenses | B33: =SUM(B30:B32) -> 2592.3 | C33: 2998.3 | D33: 6587 | E33: 7290
A34: Net Income | B34: =B29-B33 -> 3096.7 | C34: -429.3 | D34: 0 | E34: 1410
C36: or
B38: Jan | C38: Feb | D38: Mar | E38: Apr
A39: Net Sales | B39: 5689 | C39: 2569 | D39: 6587 | E39: 8700
A40: Operating Expenses | B40: 1801.15 | C40: 2099.15 | D40: 4100.3 | E40: 4245
A41: Administrating Expenses | B41: 537.8 | C41: 513.8 | D41: 1617.4 | E41: 1740
A42: Other | B42: 253.35 | C42: 385.35 | D42: =D39-D40-D41 -> 869.3 | E42: 1305
A43: Total Expenses | B43: =SUM(B40:B42) -> 2592.3 | C43: 2998.3 | D43: 6587 | E43: 7290
A44: Net Income | B44: =B39-B43 -> 3096.7 | C44: -429.3 | D44: 0 | E44: 1410
C46: or
B48: Jan | C48: Feb | D48: Mar | E48: Apr
A49: Net Sales | B49: 5689 | C49: 2569 | D49: 6587 | E49: 8700
A50: Operating Expenses | B50: 1801.15 | C50: 2099.15 | D50: 4100.3 | E50: 4245
A51: Administrating Expenses | B51: 537.8 | C51: 513.8 | D51: 1617.4 | E51: 1740
A52: Other | B52: 253.35 | C52: 385.35 | D52: =D49-D50-D51 -> 869.3 | E52: 1305
A53: Total Expenses | B53: =SUM(B50:B52) -> 2592.3 | C53: 2998.3 | D53: 6587 | E53: 7290
A54: Net Income | B54: =B49-B53 -> 3096.7 | C54: -429.3 | D54: 0 | E54: 1410

Sheet Style Formatting (an)
A1: Office 2013 Class #28: Excel Basics 10:
A2: Style Formatting: By Hand, Cell, Table & Conditional Formatting
A4: Style Formatting: Bold labels and use Borders | G4: Wrap Text in cell: multiple line in a cell | K4: Style: Column width, Fill, Font, Border, Number | O4: Accounting Borders | V4: Table Format | AA4: Cell Styles are great if you use the | AE4: Built-in Conditional Formatting | AJ4: Criteria | AK4: 18000
A5: Number Formatting: Accounting | G5: 1) While typing: Alt + Enter | V5: (really just a proper data set converted to an Excel Table) | AA5: same Style and Number formatting over and over
G6: 20 Command button in Alignment group in Home Ribbon Tab | AE6: Data Bars | AH6: Top 10% | AJ6: ="Greater than "&FIXED(AK4,0) -> Greater than 18,000 | AM6: Losses
B8: Jan | C8: Feb | D8: Mar | E8: Apr | G8: Boomerang Product Name | H8: Employee Name | I8: Sales Amount | K8: Date | L8: Product | M8: Sales | O8: Date | P8: Check # | Q8: Description | R8: Deduction | S8: Addition | T8: Balance | V8: Date | W8: Product | X8: Sales | AA8: Date | AB8: Product | AC8: Sales | AE8: Sales | AF8: Sales | AH8: Sales | AJ8: Sales | AL8: Stock | AM8: Buy Price | AN8: Price today | AO8: Quantity | AP8: Profit
A9: Net Sales | B9: 5689 | C9: 2569 | D9: 6587 | E9: 8700 | G9: Majestic Beaut | H9: Jo | I9: 505 | K9: 2013-10-29 | L9: Flying Eagle | M9: 13490 | O9: 2013-10-01 | T9: 5000.5 | V9: 2013-10-29 | W9: Flying Eagle | X9: 13490 | AA9: 2013-10-29 | AB9: Flying Eagle | AC9: 13490 | AE9: 13490 | AF9: =AE9 -> 13490 | AH9: 13490 | AJ9: 18000 | AL9: GOOG | AM9: 755 | AN9: 1015 | AO9: 700 | AP9: =AO9*(AN9-AM9) -> 182000
A10: Operating Expenses | B10: 1801.15 | C10: 2099.15 | D10: 4100.3 | E10: 4245 | G10: Delicate Arch Deluxe | H10: Moe | I10: 657 | K10: 2013-10-29 | L10: Smooth Arch | M10: 9077 | O10: 2013-10-03 | P10: 2150 | Q10: Pay Rent | R10: 500 | T10: =IF(O10<>"",T9+S10-R10,"") -> 4500.5 | V10: 2013-10-29 | W10: Smooth Arch | X10: 9077 | AA10: 2013-10-29 | AB10: Smooth Arch | AC10: 9077 | AE10: 9077 | AF10: =AE10 -> 9077 | AH10: 9077 | AJ10: 9077 | AL10: GE | AM10: 22 | AN10: 29.1 | AO10: 2200 | AP10: 15620
A11: Administrating Expenses | B11: 537.8 | C11: 513.8 | D11: 1617.4 | E11: 1740 | G11: Carlota Doublers | H11: Sheliadawn | I11: 329 | K11: 2013-10-29 | L11: Flying Eagle | M11: 10167 | O11: 2013-10-03 | P11: ATM124 | Q11: withdraw | R11: 120 | T11: 4380.5 | V11: 2013-10-29 | W11: Flying Eagle | X11: 10167 | AA11: 2013-10-29 | AB11: Flying Eagle | AC11: 10167 | AE11: 10167 | AF11: =AE11 -> 10167 | AH11: 10167 | AJ11: 10167 | AL11: KO | AM11: 36 | AN11: 37 | AO11: 300 | AP11: 300
A12: Other | B12: 253.35 | C12: 385.35 | D12: =D9-D10-D11 -> 869.3 | E12: 1305 | G12: Majestic Beaut | H12: Tina | I12: 618 | K12: 2013-10-29 | L12: Flying Eagle | M12: 13248 | O12: 2013-10-04 | Q12: Rev | S12: 654.25 | T12: 5034.75 | V12: 2013-10-29 | W12: Flying Eagle | X12: 13248 | AA12: 2013-10-29 | AB12: Flying Eagle | AC12: 13248 | AE12: 13248 | AF12: =AE12 -> 13248 | AH12: 13248 | AJ12: 13248 | AL12: MSFT | AM12: 36 | AN12: 36 | AO12: 4000 | AP12: 0
A13: Total Expenses | B13: =SUM(B10:B12) -> 2592.3 | C13: 2998.3 | D13: 6587 | E13: 7290 | G13: Delicate Arch Deluxe | H13: Tina | I13: 888 | K13: 2013-10-29 | L13: Smooth Arch | M13: 6360 | V13: 2013-10-29 | W13: Smooth Arch | X13: 6360 | AA13: 2013-10-29 | AB13: Smooth Arch | AC13: 6360 | AE13: 6360 | AF13: =AE13 -> 6360 | AH13: 6360 | AJ13: 6360 | AL13: KK | AM13: 51 | AN13: 42 | AO13: 700 | AP13: -6300
A14: Net Income | B14: =B9-B13 -> 3096.7 | C14: -429.3 | D14: 0 | E14: 1410 | G14: Delicate Arch Deluxe | H14: Moe | I14: 138 | K14: 2013-10-29 | L14: Smooth Arch | M14: 11740 | V14: 2013-10-29 | W14: Smooth Arch | X14: 11740 | AA14: 2013-10-29 | AB14: Smooth Arch | AC14: 11740 | AE14: 11740 | AF14: =AE14 -> 11740 | AH14: 11740 | AJ14: 11740 | AL14: SW | AM14: 31 | AN14: 17 | AO14: 400 | AP14: -5600
G15: Quad Freestyle | H15: Sheliadawn | I15: 125 | K15: 2013-10-29 | L15: Flying Eagle | M15: 5325 | V15: 2013-10-29 | W15: Flying Eagle | X15: 5325 | AA15: 2013-10-29 | AB15: Flying Eagle | AC15: 5325 | AE15: 5325 | AF15: =AE15 -> 5325 | AH15: 5325 | AJ15: 5325
C16: or | G16: Quad Freestyle | H16: Sheliadawn | I16: 238 | AE16: 7873 | AF16: =AE16 -> 7873 | AH16: 7873 | AJ16: 7873
AE17: 19043 | AF17: =AE17 -> 19043 | AH17: 19043 | AJ17: 19043
B18: Jan | C18: Feb | D18: Mar | E18: Apr | AE18: 12143 | AF18: =AE18 -> 12143 | AH18: 12143 | AJ18: 12143
A19: Net Sales | B19: 5689 | C19: 2569 | D19: 6587 | E19: 8700 | AE19: 10300 | AF19: =AE19 -> 10300 | AH19: 10300 | AJ19: 10300
A20: Operating Expenses | B20: 1801.15 | C20: 2099.15 | D20: 4100.3 | E20: 4245 | AE20: 10145 | AF20: =AE20 -> 10145 | AH20: 10145 | AJ20: 10145
A21: Administrating Expenses | B21: 537.8 | C21: 513.8 | D21: 1617.4 | E21: 1740 | AE21: 14309 | AF21: =AE21 -> 14309 | AH21: 14309 | AJ21: 14309
A22: Other | B22: 253.35 | C22: 385.35 | D22: =D19-D20-D21 -> 869.3 | E22: 1305 | AE22: 11711 | AF22: =AE22 -> 11711 | AH22: 11711 | AJ22: 11711
A23: Total Expenses | B23: =SUM(B20:B22) -> 2592.3 | C23: 2998.3 | D23: 6587 | E23: 7290 | AE23: 19160 | AF23: =AE23 -> 19160 | AH23: 19160 | AJ23: 19160
A24: Net Income | B24: =B19-B23 -> 3096.7 | C24: -429.3 | D24: 0 | E24: 1410 | AE24: 19310 | AF24: =AE24 -> 19310 | AH24: 19310 | AJ24: 19310
AE25: 13628 | AF25: =AE25 -> 13628 | AH25: 13628 | AJ25: 13628
C26: or | AE26: 19347 | AF26: =AE26 -> 19347 | AH26: 19347 | AJ26: 19347
AE27: 10107 | AF27: =AE27 -> 10107 | AH27: 10107 | AJ27: 10107
B28: Jan | C28: Feb | D28: Mar | E28: Apr | AE28: 18719 | AF28: =AE28 -> 18719 | AH28: 18719 | AJ28: 18719
A29: Net Sales | B29: 5689 | C29: 2569 | D29: 6587 | E29: 8700 | AE29: 13426 | AF29: =AE29 -> 13426 | AH29: 13426 | AJ29: 13426
A30: Operating Expenses | B30: 1801.15 | C30: 2099.15 | D30: 4100.3 | E30: 4245 | AE30: 12627 | AF30: =AE30 -> 12627 | AH30: 12627 | AJ30: 12627
A31: Administrating Expenses | B31: 537.8 | C31: 513.8 | D31: 1617.4 | E31: 1740 | AE31: 11723 | AF31: =AE31 -> 11723 | AH31: 11723 | AJ31: 11723
A32: Other | B32: 253.35 | C32: 385.35 | D32: =D29-D30-D31 -> 869.3 | E32: 1305 | AE32: 7981 | AF32: =AE32 -> 7981 | AH32: 7981 | AJ32: 7981
A33: Total Expenses | B33: =SUM(B30:B32) -> 2592.3 | C33: 2998.3 | D33: 6587 | E33: 7290
A34: Net Income | B34: =B29-B33 -> 3096.7 | C34: -429.3 | D34: 0 | E34: 1410
C36: or
B38: Jan | C38: Feb | D38: Mar | E38: Apr
A39: Net Sales | B39: 5689 | C39: 2569 | D39: 6587 | E39: 8700
A40: Operating Expenses | B40: 1801.15 | C40: 2099.15 | D40: 4100.3 | E40: 4245
A41: Administrating Expenses | B41: 537.8 | C41: 513.8 | D41: 1617.4 | E41: 1740
A42: Other | B42: 253.35 | C42: 385.35 | D42: =D39-D40-D41 -> 869.3 | E42: 1305
A43: Total Expenses | B43: =SUM(B40:B42) -> 2592.3 | C43: 2998.3 | D43: 6587 | E43: 7290
A44: Net Income | B44: =B39-B43 -> 3096.7 | C44: -429.3 | D44: 0 | E44: 1410
C46: or
B48: Jan | C48: Feb | D48: Mar | E48: Apr
A49: Net Sales | B49: 5689 | C49: 2569 | D49: 6587 | E49: 8700
A50: Operating Expenses | B50: 1801.15 | C50: 2099.15 | D50: 4100.3 | E50: 4245
A51: Administrating Expenses | B51: 537.8 | C51: 513.8 | D51: 1617.4 | E51: 1740
A52: Other | B52: 253.35 | C52: 385.35 | D52: =D49-D50-D51 -> 869.3 | E52: 1305
A53: Total Expenses | B53: =SUM(B50:B52) -> 2592.3 | C53: 2998.3 | D53: 6587 | E53: 7290
A54: Net Income | B54: =B49-B53 -> 3096.7 | C54: -429.3 | D54: 0 | E54: 1410

Sheet Number Formatting
A1: Office 2013 Class #29: Excel Basics 11:
A2: Number Formatting & Formulas, Don't Get Tricked By The Façade
A3: Accounting, Currency, Date, Time, Percentage, Date Math, Time Math
A5: Number Formatting:
A6: Number Formatting is a Façade that sits on top of numbers.
A7: With Number Formatting, what you see on top of the cells can sometimes be different than the actual number that is in the cell.
A8: Formulas will not look at the Number Formatting, but instead they will look at the numbers that are actually in the cells, under the Number Formatting.
A9: Formulas make their calculation on the actual numbers in the cells, not the numbers that you see on the surface of the cells, on the surface of the worksheet.
A11: Examples: | B11: Number | C11: Multiply
A12: 8.55996 | B12: 100 | E12: Formulas don't see number formatting
A13: 0.025 | B13: 100 | E13: Formulas see underlying number
A15: General Number Format: Shows the actual number that is in the cell
A16: Keyboard for General Number Formatting: Ctrl + Shift + ` ~ (key to left of Number 1)
A18: Examples: | B18: Number | C18: Multiply
A19: 8.55996 | B19: 100
A20: 0.025 | B20: 100
A21: or
A22: Sometimes you want to just increase decimals:
A23: 0.025 | B23: 100
A25: Keyboard for Format Cells dialog box = Ctrl + 1
A27: Accounting Number Format: Fixed dollar sign (left edge of cell), negatives are in parenthesis, zeros are dashes, decimals line up.
A28: Currency Number Formatting: Floating dollar sign, you choose how to show negatives, zeros are zeroes, decimals usually line up
A29: Keyboard for Currency: Ctrl + Shift + 4
B31: Jan | C31: Feb | D31: Mar | E31: Apr
A32: Net Sales | B32: 5689 | C32: 2569 | D32: 6587 | E32: 8700
A33: Operating Expenses | B33: 1801.15 | C33: 2099.15 | D33: 4100.3 | E33: 4245
A34: Administrating Expenses | B34: 537.8 | C34: 513.8 | D34: 1617.4 | E34: 1740
A35: Other | B35: 253.35 | C35: 385.35 | D35: =D32-D33-D34 -> 869.3 | E35: 1305
A36: Total Expenses | B36: =SUM(B33:B35) -> 2592.3 | C36: 2998.3 | D36: 6587 | E36: 7290
A37: Net Income | B37: =B32-B36 -> 3096.7 | C37: -429.3 | D37: 0 | E37: 1410
B40: Jan | C40: Feb | D40: Mar | E40: Apr
A41: Net Sales | B41: =B32 -> 5689 | C41: 2569 | D41: 6587 | E41: 8700
A42: Operating Expenses | B42: 1801.15 | C42: 2099.15 | D42: 4100.3 | E42: 4245
A43: Administrating Expenses | B43: 537.8 | C43: 513.8 | D43: 1617.4 | E43: 1740
A44: Other | B44: 253.35 | C44: 385.35 | D44: 869.3 | E44: 1305
A45: Total Expenses | B45: 2592.3 | C45: 2998.3 | D45: 6587 | E45: 7290
A46: Net Income | B46: 3096.7 | C46: -429.3 | D46: 0 | E46: 1410
A48: Date Number Formatting: Under dates, there are serial numbers, which are the number of days since Dec 31, 1899.
A50: Date | B50: Actual Number in Cell
A51: 1900-01-01 | B51: 1 | D51: 50.255
A52: 1900-01-02 | B52: 2
A53: 2013-10-30 | B53: 41577
A55: Why? So we can do Date Math!
A57: Invoice due date | D57: Enter dates with forward slashes (there are other ways also)
A58: Today | D58: Keyboard for today's date: Ctrl + ;
A59: Days past due | D59: Important Formula: Days between dates = Later Date - Earlier Date
A61: Loan issue date | B61: 2013-09-02
A62: Days until loan due | B62: 120
A63: Maturity Date | D63: You can add numbers to dates
A65: Your birthday | D65: Enter dates with forward slashes (there are other ways also)
A66: Today | D66: TODAY function will update each day you open workbook file
A67: Days You've been alive
A69: Project Start Date | B69: 2013-10-30
A70: Project End Date | B70: 2014-01-13
A71: # days for project | D71: Important Formula: Days between dates where start date IS included= Later Date - Earlier Date + 1
A74: Time Number Format: Proportion of the 24 hour day
A76: Time | B76: Proportion of 24 hour day | E76: Actual Number in Cell
A77: 08:00:00 | B77: =8/24 -> 0.3333333333 | C77: =1/3 -> 0.3333333333 | E77: =8/24 -> 0.3333333333
A78: 12:00:00 | B78: =12/24 -> 0.5 | C78: =1/2 -> 0.5 | E78: =12/24 -> 0.5
A79: 15:00:00 | B79: (12+3)/24 | C79: =15/24 -> 0.625 | D79: =15/24 -> 0.625 | E79: =15/24 -> 0.625 | G79: 15:00:00
A81: Enter time as hour, colon, minutes, colon, seconds, then a space, and AM or PM (there are other methods also) | I81: Time | J81: Actual Number in Cell
A82: Time | B82: Actual Number in Cell | I82: 00:00:00 | J82: =I82 -> 0
A83: 08:00:00 | B83: 0.3333333333 | I83: 1 | J83: =I83 -> 1
A84: 12:00:00 | B84: 0.5 | I84: 08:00:00 | J84: =I84 -> 0.3333333333
A85: 15:00:00 | B85: 0.625 | E85: ==>> more examples of time ==>> | I85: 12:00:00 | J85: 0.5
A86: 15:15:00 | B86: 0.6354166667 | I86: 15:00:00 | J86: 0.625
I87: 15:15:00 | J87: 0.6354166667
A88: Notice that we took a number and divided by 24!!!!
A89: This means that if we want to do Time Math and get hours as a result, we must multiply the decimal time answer by 24!!!!
A91: Wage per hour | B91: 21.25
A92: Time In | D92: Enter time as hour, colon, minutes, colon, seconds, then a space, and AM or PM (there are other methods also)
A93: Time Out
A94: Total Hours worked
A95: Gross Pay | D95: Important Formula: Hours Worked = (Later Time - Earlier Time)*24
A97: Homework tracker:
A98: Start Time
A99: End Time
A100: Hours worked
A101: Start Time
A102: End Time
A103: Hours worked
A104: Total
B105: or
A106: Total
A108: Percentage Number Formatting
A109: What is a percentage?
A110: How many parts out of 100?
A111: How many pennies for every 100 pennies you need to pay?
A113: Pennies you must pay: | B113: one hundred | C113: Decimal equivalent | D113: Percentage
A114: 2 | B114: 100
A115: 9.9 | B115: 100
A116: 7.65 | B116: 100
C117: > > >
C118: This is the number that calculations are based on
A119: To format a number as a percentage: 1) slide decimal two places to the right, 2) add a % symbol
A121: Ways to enter percentages:
A122: Type .03 in cell, then add % format
A123: Type 3 in cell, then add % format | E123: 3
A124: Add % format, then type 3, Enter
A125: Add % format, then type .03, Enter
A126: Add % format as you type
A127: Type .025, then add % from ribbon
A129: Increase Decrease Decimals Number Formatting or Currency or Accounting Number Formatting
A131: Payroll:
A132: Employee | B132: Gross Pay | C132: Tax Deduction
A133: Lillian Holt | B133: 689.25
A134: Jasmine Phelps | B134: 765.71
A135: Sadie Hudson | B135: 687.43
A137: Tax Rate
A138: 0.0765 | C138: Accounting Number Format has made it look like we have rounded to penny.
C139: BUT WE HAVE NOT!!!!!!!!
A140: Type what you see: | C140: Decimals are being hidden by Number Formatting.
C141: Because formulas calculate on the numbers that are actually in the cell and not the Formatted Numbers,
C142: formulas sometimes will show the incorrect answer.
C143: Next video: the solution: ROUND function

Sheet Number Formatting (an)
A1: Office 2013 Class #29: Excel Basics 11:
A2: Number Formatting & Formulas, Don't Get Tricked By The Façade
A3: Accounting, Currency, Date, Time, Percentage, Date Math, Time Math
A5: Number Formatting:
A6: Number Formatting is a Façade that sits on top of numbers.
A7: With Number Formatting, what you see on top of the cells can sometimes be different than the actual number that is in the cell.
A8: Formulas will not look at the Number Formatting, but instead they will look at the numbers that are actually in the cells, under the Number Formatting.
A9: Formulas make their calculation on the actual numbers in the cells, not the numbers that you see on the surface of the cells, on the surface of the worksheet.
A11: Examples: | B11: Number | C11: Multiply
A12: 8.55996 | B12: 100 | C12: =B12*A12 -> 855.996 | E12: Formulas don't see number formatting
A13: 0.025 | B13: 100 | C13: =B13*A13 -> 2.5 | E13: Formulas see underlying number
A15: General Number Format: Shows the actual number that is in the cell
A16: Keyboard for General Number Formatting: Ctrl + Shift + ` ~ (key to left of Number 1)
A18: Examples: | B18: Number | C18: Multiply
A19: 8.55996 | B19: 100 | C19: =B19*A19 -> 855.996
A20: 0.025 | B20: 100 | C20: =B20*A20 -> 2.5
A21: or
A22: Sometimes you want to just increase decimals:
A23: 0.025 | B23: 100 | C23: =B23*A23 -> 2.5
A25: Keyboard for Format Cells dialog box = Ctrl + 1
A27: Accounting Number Format: Fixed dollar sign (left edge of cell), negatives are in parenthesis, zeros are dashes, decimals line up.
A28: Currency Number Formatting: Floating dollar sign, you choose how to show negatives, zeros are zeroes, decimals usually line up
A29: Keyboard for Currency: Ctrl + Shift + 4
B31: Jan | C31: Feb | D31: Mar | E31: Apr
A32: Net Sales | B32: 5689 | C32: 2569 | D32: 6587 | E32: 8700
A33: Operating Expenses | B33: 1801.15 | C33: 2099.15 | D33: 4100.3 | E33: 4245
A34: Administrating Expenses | B34: 537.8 | C34: 513.8 | D34: 1617.4 | E34: 1740
A35: Other | B35: 253.35 | C35: 385.35 | D35: =D32-D33-D34 -> 869.3 | E35: 1305
A36: Total Expenses | B36: =SUM(B33:B35) -> 2592.3 | C36: 2998.3 | D36: 6587 | E36: 7290
A37: Net Income | B37: =B32-B36 -> 3096.7 | C37: -429.3 | D37: 0 | E37: 1410
B40: Jan | C40: Feb | D40: Mar | E40: Apr
A41: Net Sales | B41: =B32 -> 5689 | C41: 2569 | D41: 6587 | E41: 8700
A42: Operating Expenses | B42: 1801.15 | C42: 2099.15 | D42: 4100.3 | E42: 4245
A43: Administrating Expenses | B43: 537.8 | C43: 513.8 | D43: 1617.4 | E43: 1740
A44: Other | B44: 253.35 | C44: 385.35 | D44: 869.3 | E44: 1305
A45: Total Expenses | B45: 2592.3 | C45: 2998.3 | D45: 6587 | E45: 7290
A46: Net Income | B46: 3096.7 | C46: -429.3 | D46: 0 | E46: 1410
A48: Date Number Formatting: Under dates, there are serial numbers, which are the number of days since Dec 31, 1899.
A50: Date | B50: Actual Number in Cell
A51: 1900-01-01 | B51: 1 | D51: 50.255
A52: 1900-01-02 | B52: 2
A53: 2013-10-30 | B53: 41577 | D53: 2013-10-30
A55: Why? So we can do Date Math!
A57: Invoice due date | B57: 2013-09-09 | D57: Enter dates with forward slashes (there are other ways also)
A58: Today | B58: 2013-10-30 | D58: Keyboard for today's date: Ctrl + ;
A59: Days past due | B59: =B58-B57 -> 51 | D59: Important Formula: Days between dates = Later Date - Earlier Date
A61: Loan issue date | B61: 2013-09-02
A62: Days until loan due | B62: 120
A63: Maturity Date | B63: =B61+B62 -> 2013-12-31 | D63: You can add numbers to dates
A65: Your birthday | B65: 1975-05-02 | D65: Enter dates with forward slashes (there are other ways also)
A66: Today | B66: =TODAY() -> 2013-10-31 | D66: TODAY function will update each day you open workbook file
A67: Days You've been alive | B67: =B66-B65 -> 14062
A69: Project Start Date | B69: 2013-10-30
A70: Project End Date | B70: 2014-01-13
A71: # days for project | B71: =B70-B69+1 -> 76 | D71: Important Formula: Days between dates where start date IS included= Later Date - Earlier Date + 1
A74: Time Number Format: Proportion of the 24 hour day
A76: Time | B76: Proportion of 24 hour day | E76: Actual Number in Cell
A77: 08:00:00 | B77: =8/24 -> 0.3333333333 | C77: =1/3 -> 0.3333333333 | E77: =8/24 -> 0.3333333333
A78: 12:00:00 | B78: =12/24 -> 0.5 | C78: =1/2 -> 0.5 | E78: =12/24 -> 0.5
A79: 15:00:00 | B79: (12+3)/24 | C79: =15/24 -> 0.625 | D79: =15/24 -> 0.625 | E79: =15/24 -> 0.625 | G79: 15:00:00
A81: Enter time as hour, colon, minutes, colon, seconds, then a space, and AM or PM (there are other methods also) | I81: Time | J81: Actual Number in Cell
A82: Time | B82: Actual Number in Cell | I82: 00:00:00 | J82: =I82 -> 0
A83: 08:00:00 | B83: 0.3333333333 | E83: 08:00:00 | I83: 1 | J83: =I83 -> 1
A84: 12:00:00 | B84: 0.5 | I84: 08:00:00 | J84: =I84 -> 0.3333333333
A85: 15:00:00 | B85: 0.625 | E85: ==>> more examples of time ==>> | I85: 12:00:00 | J85: 0.5
A86: 15:15:00 | B86: 0.6354166667 | I86: 15:00:00 | J86: 0.625
I87: 15:15:00 | J87: 0.6354166667
A88: Notice that we took a number and divided by 24!!!!
A89: This means that if we want to do Time Math and get hours as a result, we must multiply the decimal time answer by 24!!!!
A91: Wage per hour | B91: 21.25
A92: Time In | B92: 08:00:00 | D92: Enter time as hour, colon, minutes, colon, seconds, then a space, and AM or PM (there are other methods also)
A93: Time Out | B93: 14:30:00
A94: Total Hours worked | B94: =(B93-B92)*24 -> 6.5
A95: Gross Pay | B95: =B94*B91 -> 138.125 | D95: Important Formula: Hours Worked = (Later Time - Earlier Time)*24
A97: Homework tracker:
A98: Start Time | B98: 08:30:00
A99: End Time | B99: 11:00:00
A100: Hours worked | B100: =(B99-B98)*24 -> 2.5
A101: Start Time | B101: 22:00:00
A102: End Time | B102: 23:15:00
A103: Hours worked | B103: =24*(B102-B101) -> 1.25
A104: Total | B104: =B103+B100 -> 3.75
B105: or
A106: Total | B106: =SUM(B99-B98,B102-B101)*24 -> 3.75
A108: Percentage Number Formatting
A109: What is a percentage?
A110: How many parts out of 100?
A111: How many pennies for every 100 pennies you need to pay?
A113: Pennies you must pay: | B113: one hundred | C113: Decimal equivalent | D113: Percentage
A114: 2 | B114: 100 | C114: =A114/B114 -> 0.02 | D114: =C114 -> 0.02 | F114: 2.00%
A115: 9.9 | B115: 100 | C115: =A115/B115 -> 0.099 | D115: =C115 -> 0.099
A116: 7.65 | B116: 100 | C116: 0.0765 | D116: 0.0765
C117: > > >
C118: This is the number that calculations are based on
A119: To format a number as a percentage: 1) slide decimal two places to the right, 2) add a % symbol
A121: Ways to enter percentages:
A122: Type .03 in cell, then add % format | C122: 0.03
A123: Type 3 in cell, then add % format | C123: 3 | E123: 3
A124: Add % format, then type 3, Enter | C124: 0.03
A125: Add % format, then type .03, Enter | C125: 0.03
A126: Add % format as you type | C126: 0.0355
A127: Type .025, then add % from ribbon | C127: 0.025
A129: Increase Decrease Decimals Number Formatting or Currency or Accounting Number Formatting
A131: Payroll:
A132: Employee | B132: Gross Pay | C132: Tax Deduction
A133: Lillian Holt | B133: 689.25 | C133: =B133*$A$138 -> 52.727625
A134: Jasmine Phelps | B134: 765.71 | C134: =B134*$A$138 -> 58.576815
A135: Sadie Hudson | B135: 687.43 | C135: 52.588395
C136: =SUM(C133:C135) -> 163.892835
A137: Tax Rate
A138: 0.0765 | C138: Accounting Number Format has made it look like we have rounded to penny.
C139: BUT WE HAVE NOT!!!!!!!!
A140: Type what you see: | C140: Decimals are being hidden by Number Formatting.
A141: 52.73 | C141: Because formulas calculate on the numbers that are actually in the cell and not the Formatted Numbers,
A142: 58.58 | C142: formulas sometimes will show the incorrect answer.
A143: 52.59 | C143: Next video: the solution: ROUND function
A144: =SUM(A141:A143) -> 163.9

Sheet ROUND
A1: Office 2013 Class #30: Excel Basics 12:
A2: ROUND function: When and How to use it in Business
A4: How to round by hand?
A5: 1) Pick position you want to round to
A6: 2) look at digit to right:
A7: 5 or bigger ==>> add one to position you are rounding to and remove unwanted digits
A8: 4 or less ==>> remove unwanted digits
A10: 52.724584 | B10: 52.724584 | C10: 52.724584 | D10: 52.7(2+0)7625 | E10: 52.72
A11: 52.727625 | B11: 52.727625 | C11: 52.727625 | D11: 52.7(2+1)4584 | E11: 52.73
A13: We can use the ROUND function to remove unwanted decimals
A14: When to use ROUND:
A15: 1) When you are multiplying or dividing decimals and run the risk of extraneous decimals, AND
A16: 2) you will be using the numbers in subsequent formulas, use the ROUND function.
A17: Examples:
A18: Payroll
A19: Invoices
A20: Taxes
A22: Payroll:
A23: Employee | B23: Gross Pay | C23: Tax Deduction | E23: Type what you see
A24: Lillian Holt | B24: 689.25 | E24: 52.73
A25: Jasmine Phelps | B25: 765.71 | E25: 58.58
A26: Sadie Hudson | B26: 687.43 | E26: 52.59
E27: =SUM(E24:E26) -> 163.9
A28: Tax Rate
A29: 0.0765 | C29: Rules for ROUND:
C30: Round to penny (hundredths position) use 2
C31: Round to dollar (ones position) use 0
C32: Round to thousands (thousands position) use -3
A33: Invoicing and Payroll Tax:
A34: Invoice Number | B34: 1025
A35: Item | B35: Price | C35: Units | D35: Total
A36: 1'' screws | B36: 0.0575 | C36: 81 | D36: =ROUND(C36*B36,2) -> 4.66
A37: 6" lock pads | B37: 1.05 | C37: 24 | D37: =ROUND(C37*B37,2) -> 25.2 | F37: Tax Rate
C38: Subtotal | D38: =SUM(D36:D37) -> 29.86 | F38: 0.099
C39: Tax | D39: =ROUND(D38*F38,2) -> 2.96
C40: Total | D40: =SUM(D38:D39) -> 32.82
A41: Thanks for your Order!
A43: **Payroll Taxes and Invoices often times have to round to the penny.
A44: **Sometimes for INCOME TAXES you have to round to the dollar.
A46: Taxable Amount | B46: Tax rounded to dollar | D46: Tax Rate
A47: 2345.98 | D47: 0.155
A48: 345.9
A49: 235.8
A50: 2541.12

Sheet ROUND (an)
A1: Office 2013 Class #30: Excel Basics 12:
A2: ROUND function: When and How to use it in Business
A4: How to round by hand?
A5: 1) Pick position you want to round to
A6: 2) look at digit to right:
A7: 5 or bigger ==>> add one to position you are rounding to and remove unwanted digits
A8: 4 or less ==>> remove unwanted digits
A10: 52.724584 | B10: 52.724584 | C10: 52.724584 | D10: 52.7(2+0)7625 | E10: 52.72
A11: 52.727625 | B11: 52.727625 | C11: 52.727625 | D11: 52.7(2+1)4584 | E11: 52.73
A13: We can use the ROUND function to remove unwanted decimals
A14: When to use ROUND:
A15: 1) When you are multiplying or dividing decimals and run the risk of extraneous decimals, AND
A16: 2) you will be using the numbers in subsequent formulas, use the ROUND function.
A17: Examples:
A18: Payroll
A19: Invoices
A20: Taxes
A22: Payroll:
A23: Employee | B23: Gross Pay | C23: Tax Deduction | E23: Type what you see
A24: Lillian Holt | B24: 689.25 | C24: =ROUND(B24*$A$29,2) -> 52.73 | E24: 52.73
A25: Jasmine Phelps | B25: 765.71 | C25: =ROUND(B25*$A$29,2) -> 58.58 | E25: 58.58
A26: Sadie Hudson | B26: 687.43 | C26: 52.59 | E26: 52.59
C27: =SUM(C24:C26) -> 163.9 | E27: =SUM(E24:E26) -> 163.9
A28: Tax Rate
A29: 0.0765 | C29: Rules for ROUND:
C30: Round to penny (hundredths position) use 2
C31: Round to dollar (ones position) use 0
C32: Round to thousands (thousands position) use -3
A33: Invoicing and Payroll Tax:
A34: Invoice Number | B34: 1025
A35: Item | B35: Price | C35: Units | D35: Total
A36: 1'' screws | B36: 0.0575 | C36: 81 | D36: =ROUND(C36*B36,2) -> 4.66
A37: 6" lock pads | B37: 1.05 | C37: 24 | D37: =ROUND(C37*B37,2) -> 25.2 | F37: Tax Rate
C38: Subtotal | D38: =SUM(D36:D37) -> 29.86 | F38: 0.099
C39: Tax | D39: =ROUND(D38*F38,2) -> 2.96
C40: Total | D40: =SUM(D38:D39) -> 32.82
A41: Thanks for your Order!
A43: **Payroll Taxes and Invoices often times have to round to the penny.
A44: **Sometimes for INCOME TAXES you have to round to the dollar.
A46: Taxable Amount | B46: Tax rounded to dollar | D46: Tax Rate
A47: 2345.98 | B47: =ROUND(A47*$D$47,0) -> 364 | D47: 0.155
A48: 345.9 | B48: =ROUND(A48*$D$47,0) -> 54
A49: 235.8 | B49: 37
A50: 2541.12 | B50: =ROUND(A50*$D$47,0) -> 394

Sheet Formulas
A1: Office 2013 Class #31: Excel Basics 13:
A2: What Can Go Into Formulas: Examples of Formula Elements
A4: Formulas:
A5: Calculations we can make in the cells and other locations.
A6: Examples:
A7: Adding a column of expenses
A8: Adding with one condition
A9: Joining a first and last name
A10: Checking whether two numbers are in balance
A11: All formulas start with an equal sign as the first character in the cell
A12: Formulas elements (things that can go into formulas):
A13: Equal signs
A14: Cell References
A15: Math operators
A16: Numbers (if the number won't change like 12 for months in a year)
A17: Built-in functions (like SUM, SUMIFS, AVERAGE)
A18: Comparative operators (like > and <)
A19: Join Symbol: & (Ampersand)
A20: Text in double quotes (like "Revenue" or ", ")
A22: Example 1:
A23: Adding a column of expenses: 1) equal sign, 2) SUM function, 3) range of cells
A24: Expenses | B24: Totals for year
A25: Rent | B25: =950*12 -> 11400
A26: Operations | B26: =12*5423 -> 65076
A27: Admin | B27: =12*7000 -> 84000
A28: COGS | B28: =100000*0.7556 -> 75560
A29: Other | B29: 5987
A30: Total
A32: Example 2:
A33: Adding with one condition: 1) equal sign, 2) SUMIFS, 3) range of cells, 4) "Text" in quotes
A34: Type | B34: Amounts | D34: Total Revenue
A35: Revenue | B35: 548.2
A36: Credit | B36: -158.25
A37: Revenue | B37: 19.5
A38: Revenue | B38: 250.23
A39: Credit | B39: -25
A41: Example 3:
A42: Adding with one condition: 1) equal sign, 2) SUMIF, 3) range of cells, 4) cell with number and comparative operator
B43: Amounts | D43: Criteria
B44: 548.2 | D44: >0 | E44: <<== Notice that when we put comparative operator and zero in a cell, Excel considers it Text.
B45: -158.25 | D45: Total Revenue
B46: 19.5 | E46: ** If the sum range and criteria range are the same, use SUMIF cuz it's less to type
B47: 250.23 | D47: or | E47: ** if the sum range and criteria range are the same, only enter numbers into range argument
B48: -25 | D48: Total Revenue
E49: <<== If criteria will not change (Excel's Golden Rule), you can type it into formula
A53: Example 4:
A54: Joining a first and last name: 1) equal sign, 2) cell, 3) Join Symbol, 4) Text in quotes
A55: First | B55: Last | C55: Join | E55: Last, First
A56: Jimmy | B56: Garza | D56: or | F56: Called: Text Formula
A57: Emma | B57: Potter
A58: Rolando | B58: Robbins
A59: Louise | B59: Maado
A60: Felicia | B60: Cohen
A61: Henry | B61: Wagner
A62: Wesley | B62: Baldwin
A63: Sophie | B63: Walsh
A64: Evelyn | B64: Scott
A65: Hugh | B65: Mason
A67: Example 5:
A68: Check whether two cells are equal
A69: Checking whether two numbers are in balance: 1) equal sign, 2) cell, 3) equal sign as comparative operator, 4) cell
B70: DR | C70: CR
B71: 65.25
C72: 65.25
B73: 589.001
C74: 589
B75: 12.25
C76: 12.25
A77: Total | B77: =SUM(B71:B76) -> 666.501 | C77: 666.5
A79: Balance? | C79: Called: Logical Formula
A84: =E84&" ==>>" -> Math Operators ==>> | E84: Math Operators
E85: ( ) represents Parentheses | F85: Shift + 9 and Shift + 0
E86: ^ represents Exponents (powers and roots) | F86: Shift + 6
E87: * represents Multiplication | F87: * on Number pad
E88: / represents Division | F88: / on Number pad
E89: + represents Addition | F89: + on Number pad
E90: – represents Subtraction | F90: - on Number pad
A92: =E92&" ==>>" -> Comparative Operators ==>> | E92: Comparative Operators
E93: > Greater Than
E94: >= Greater Than Or Equal To
E95: < Less Than
E96: <= Less Than Or Equal To
E97: = Equal To
E98: <> Not Equal To

Sheet Formulas (an)
A1: Office 2013 Class #31: Excel Basics 13:
A2: What Can Go Into Formulas: Examples of Formula Elements
A4: Formulas:
A5: Calculations we can make in the cells and other locations.
A6: Examples:
A7: Adding a column of expenses
A8: Adding with one condition
A9: Joining a first and last name
A10: Checking whether two numbers are in balance
A11: All formulas start with an equal sign as the first character in the cell
A12: Formulas elements (things that can go into formulas):
A13: Equal signs
A14: Cell References
A15: Math operators
A16: Numbers (if the number won't change like 12 for months in a year)
A17: Built-in functions (like SUM, SUMIFS, AVERAGE)
A18: Comparative operators (like > and <)
A19: Join Symbol: & (Ampersand)
A20: Text in double quotes (like "Revenue" or ", ")
A22: Example 1:
A23: Adding a column of expenses: 1) equal sign, 2) SUM function, 3) range of cells
A24: Expenses | B24: Totals for year
A25: Rent | B25: =950*12 -> 11400
A26: Operations | B26: =12*5423 -> 65076
A27: Admin | B27: =12*7000 -> 84000
A28: COGS | B28: =100000*0.7556 -> 75560
A29: Other | B29: 5987
A30: Total | B30: =SUM(B25:B29) -> 242023
A32: Example 2:
A33: Adding with one condition: 1) equal sign, 2) SUMIFS, 3) range of cells, 4) "Text" in quotes
A34: Type | B34: Amounts | D34: Total Revenue
A35: Revenue | B35: 548.2 | D35: =SUMIFS(B35:B39,A35:A39,"Revenue") -> 817.93
A36: Credit | B36: -158.25
A37: Revenue | B37: 19.5
A38: Revenue | B38: 250.23
A39: Credit | B39: -25
A41: Example 3:
A42: Adding with one condition: 1) equal sign, 2) SUMIF, 3) range of cells, 4) cell with number and comparative operator
B43: Amounts | D43: Criteria
B44: 548.2 | D44: >0 | E44: <<== Notice that when we put comparative operator and zero in a cell, Excel considers it Text.
B45: -158.25 | D45: Total Revenue
B46: 19.5 | D46: =SUMIF(B44:B48,D44) -> 817.93 | E46: ** If the sum range and criteria range are the same, use SUMIF cuz it's less to type
B47: 250.23 | D47: or | E47: ** if the sum range and criteria range are the same, only enter numbers into range argument
B48: -25 | D48: Total Revenue
D49: =SUMIF(B44:B48,">0") -> 817.93 | E49: <<== If criteria will not change (Excel's Golden Rule), you can type it into formula
A53: Example 4:
A54: Joining a first and last name: 1) equal sign, 2) cell, 3) Join Symbol, 4) Text in quotes
A55: First | B55: Last | C55: Join | E55: Last, First
A56: Jimmy | B56: Garza | C56: =A56&" "&B56 -> Jimmy Garza | D56: or | E56: =B56&", "&A56 -> Garza, Jimmy | F56: Called: Text Formula
A57: Emma | B57: Potter | C57: =A57&" "&B57 -> Emma Potter | E57: =B57&", "&A57 -> Potter, Emma
A58: Rolando | B58: Robbins | C58: Rolando Robbins | E58: Robbins, Rolando
A59: Louise | B59: Maado | C59: Louise Maado | E59: Maado, Louise
A60: Felicia | B60: Cohen | C60: Felicia Cohen | E60: Cohen, Felicia
A61: Henry | B61: Wagner | C61: Henry Wagner | E61: Wagner, Henry
A62: Wesley | B62: Baldwin | C62: Wesley Baldwin | E62: Baldwin, Wesley
A63: Sophie | B63: Walsh | C63: Sophie Walsh | E63: Walsh, Sophie
A64: Evelyn | B64: Scott | C64: Evelyn Scott | E64: Scott, Evelyn
A65: Hugh | B65: Mason | C65: Hugh Mason | E65: Mason, Hugh
A67: Example 5:
A68: Check whether two cells are equal
A69: Checking whether two numbers are in balance: 1) equal sign, 2) cell, 3) equal sign as comparative operator, 4) cell
B70: DR | C70: CR
B71: 65.25
C72: 65.25
B73: 589.001
C74: 589
B75: 12.25
C76: 12.25
A77: Total | B77: =SUM(B71:B76) -> 666.501 | C77: 666.5
A79: Balance? | B79: =B77=C77 -> FALSE | C79: Called: Logical Formula
A84: =E84&" ==>>" -> Math Operators ==>> | E84: Math Operators
E85: ( ) represents Parentheses | F85: Shift + 9 and Shift + 0
E86: ^ represents Exponents (powers and roots) | F86: Shift + 6
E87: * represents Multiplication | F87: * on Number pad
E88: / represents Division | F88: / on Number pad
E89: + represents Addition | F89: + on Number pad
E90: – represents Subtraction | F90: - on Number pad
A92: =E92&" ==>>" -> Comparative Operators ==>> | E92: Comparative Operators
E93: > Greater Than
E94: >= Greater Than Or Equal To
E95: < Less Than
E96: <= Less Than Or Equal To
E97: = Equal To
E98: <> Not Equal To

Sheet Math
A1: Office 2013 Class #32: Excel Basics 14: Math and Order of Operations in Excel Formulas
A3: 8+2*2 | C3: 8+2*2
A4: =(8+2)*2 -> 20 | C4: =8+2*2 -> 12
A6: 8+2*2 | C6: 8+2*2
A17: Beg Qty | B17: End Qty | C17: Value Each | D17: COGS | F17: COGS calculation | M17: Formula Inputs:
A18: =M18 -> 10 | B18: =N18 -> 3 | C18: =O18 -> 5 | F18: =A20&" - "&B20&" * "&C20&" = "&A20-B20*C20 -> 10 - 3 * 5 = -5 | M18: 10 | N18: 3 | O18: 5
A19: Beg Qty | B19: End Qty | C19: Value Each | D19: COGS | F19: =M18&" - "&N18*O18&" = "&M18-N18*O18 -> 10 - 15 = -5 | M19: 10 | N19: 3 | O19: 5
A20: =M19 -> 10 | B20: =N19 -> 3 | C20: =O19 -> 5 | F20: =M19-N19*O19&" = "&M19-N19*O19 -> -5 = -5

Sheet Math (an)
A1: Office 2013 Class #32: Excel Basics 14: Math and Order of Operations in Excel Formulas
A3: 8+2*2 | C3: 8+2*2
A4: =(8+2)*2 -> 20 | C4: =8+2*2 -> 12
A6: 8+2*2 | C6: 8+2*2
A7: =(8+2)*2 -> 20 | C7: =8+2*2 -> 12
A17: Beg Qty | B17: End Qty | C17: Value Each | D17: COGS | F17: COGS calculation | M17: Formula Inputs:
A18: =M18 -> 10 | B18: =N18 -> 3 | C18: =O18 -> 5 | D18: =A18-B18*C18 -> -5 | F18: =A20&" - "&B20&" * "&C20&" = "&A20-B20*C20 -> 10 - 3 * 5 = -5 | M18: 10 | N18: 3 | O18: 5
A19: Beg Qty | B19: End Qty | C19: Value Each | D19: COGS | F19: =M18&" - "&N18*O18&" = "&M18-N18*O18 -> 10 - 15 = -5 | M19: 10 | N19: 3 | O19: 5
A20: =M19 -> 10 | B20: =N19 -> 3 | C20: =O19 -> 5 | D20: =(A20-B20)*C20 -> 35 | F20: =M19-N19*O19&" = "&M19-N19*O19 -> -5 = -5

Sheet Entering Cell References
A1: Office 2013 Class #33: Excel Basics 15:
A2: Entering Cell References into Formulas & Edit Mode Status Bar
A4: 3 ways to enter cell references into formulas:
A5: 1) Type. Be careful, though, errors may occur.
A6: 2) Mouse: Great for when cell reference is far away.
A7: 3) Arrow keys: great for when cell references are close.
A8: As long as "Dancing Ants" are dancing, the arrow keys will keep moving the cell reference.
A9: Lower left corner of Status Bar shows the "Formula Editing Mode"
A10: Ready = cell is selected.
A11: Enter = Arrow keys will work to put cell references in formulas.
A12: Point = Arrows keys are working to get cell reference and "Dancing Ants" are dancing.
A13: Edit = Arrow keys will move through formula characters. To get into this mode click I-beam cursor in formula.
A14: You can toggle between these modes with the F2 key.
A16: Names | B16: Gross Pay | C16: =C24 -> Deduction 1 | D16: =D24 -> Deduction 2 | E16: Total Deductions | F16: Net Pay
A17: Sioux Chin | B17: 3500 | C17: =$B17*C$25 -> 217 | D17: =$B17*D$25 -> 50.75 | E17: =SUM(C17:D17) -> 267.75
A18: Isaac Viet | B18: 3784.32 | C18: 234.62784 | D18: 54.87264 | E18: =SUM(C18:D18) -> 289.50048
A19: Dennis Ho | B19: 8565.51 | C19: 531.06162 | D19: 124.199895 | E19: =SUM(C19:D19) -> 655.261515
A20: Hien Luong Pham | B20: 2627.99 | C20: 162.93538 | D20: 38.105855 | E20: =SUM(C20:D20) -> 201.041235
A21: Tom Carolan | B21: 9069.66 | C21: 562.31892 | D21: 131.51007 | E21: =SUM(C21:D21) -> 693.82899
C23: Assumptions
C24: Deduction 1 | D24: Deduction 2
C25: 0.062 | D25: 0.0145

Sheet Entering Cell References (an)
A1: Office 2013 Class #33: Excel Basics 15:
A2: Entering Cell References into Formulas & Edit Mode Status Bar
A4: 3 ways to enter cell references into formulas:
A5: 1) Type. Be careful, though, errors may occur.
A6: 2) Mouse: Great for when cell reference is far away.
A7: 3) Arrow keys: great for when cell references are close.
A8: As long as "Dancing Ants" are dancing, the arrow keys will keep moving the cell reference.
A9: Lower left corner of Status Bar shows the "Formula Editing Mode"
A10: Ready = cell is selected.
A11: Enter = Arrow keys will work to put cell references in formulas.
A12: Point = Arrows keys are working to get cell reference and "Dancing Ants" are dancing.
A13: Edit = Arrow keys will move through formula characters. To get into this mode click I-beam cursor in formula.
A14: You can toggle between these modes with the F2 key.
A16: Names | B16: Gross Pay | C16: =C24 -> Deduction 1 | D16: =D24 -> Deduction 2 | E16: Total Deductions | F16: Net Pay
A17: Sioux Chin | B17: 3500 | C17: =$B17*C$25 -> 217 | D17: =$B17*D$25 -> 50.75 | E17: =SUM(C17:D17) -> 267.75 | F17: =B17-E17 -> 3232.25
A18: Isaac Viet | B18: 3784.32 | C18: 234.62784 | D18: 54.87264 | E18: =SUM(C18:D18) -> 289.50048 | F18: =B18-E18 -> 3494.81952
A19: Dennis Ho | B19: 8565.51 | C19: 531.06162 | D19: 124.199895 | E19: =SUM(C19:D19) -> 655.261515 | F19: 7910.248485
A20: Hien Luong Pham | B20: 2627.99 | C20: 162.93538 | D20: 38.105855 | E20: =SUM(C20:D20) -> 201.041235 | F20: 2426.948765
A21: Tom Carolan | B21: 9069.66 | C21: 562.31892 | D21: 131.51007 | E21: =SUM(C21:D21) -> 693.82899 | F21: 8375.83101
C23: Assumptions
C24: Deduction 1 | D24: Deduction 2
C25: 0.062 | D25: 0.0145

Sheet FlashFill
A1: Office 2013 Class #34: Excel Basics 16: Flash Fill To Combine or Extract Text
A3: Example 4 from Video Excel Basics 13:
A4: Joining a first and last name: 1) equal sign, 2) cell, 3) Join Symbol, 4) Text in quotes
A5: First | B5: Last | C5: Join | E5: Last, First
A6: Jimmy | B6: Garza | C6: =A6&" "&B6 -> Jimmy Garza | D6: or | E6: =B6&", "&A6 -> Garza, Jimmy
A7: Emma | B7: Potter | C7: =A7&" "&B7 -> Emma Potter | E7: Potter, Emma
A8: Rolando | B8: Robbins | C8: Rolando Robbins | E8: Robbins, Rolando
A9: Louise | B9: Maado | C9: Louise Maado | E9: Maado, Louise
A10: Felicia | B10: Cohen | C10: Felicia Cohen | E10: Cohen, Felicia
A11: Henry | B11: Wagner | C11: Henry Wagner | E11: Wagner, Henry
A12: Wesley | B12: Baldwin | C12: Wesley Baldwin | E12: Baldwin, Wesley
A13: Sophie | B13: Walsh | C13: Sophie Walsh | E13: Walsh, Sophie
A14: Evelyn | B14: Scott | C14: Evelyn Scott | E14: Scott, Evelyn
A15: Hugh | B15: Mason | C15: Hugh Mason | E15: Mason, Hugh
A17: What use formulas?
A18: If the source data will be changing.
A19: In our case we had a template where we always changed the names and so formulas worked great form automatically updating.
A21: But if it is a ONE-TIME EVENT, use Flash Fill (New In Excel 2013)
A22: Flash Fill = Program by example
A23: You give Excel one or more examples, and it tries to figure out what you want.
A24: If Excel can see your "Pattern", it will do the action.
A26: Combine:
A27: First | B27: Last | C27: =A27&" "& B27 -> First Last
A28: Jimmy | B28: Garza
A29: Emma | B29: Potter
A30: Rolando | B30: Robbins
A31: Louise | B31: Maado
A32: Felicia | B32: Cohen
A33: Henry | B33: Wagner
A34: Wesley | B34: Baldwin
A35: Sophie | B35: Walsh
A36: Evelyn | B36: Scott
A37: Hugh | B37: Mason
A39: Combine and add text:
A40: First | B40: Last | C40: =B40&", "&A40 -> Last, First
A41: Jimmy | B41: Garza
A42: Emma | B42: Potter
A43: Rolando | B43: Robbins
A44: Louise | B44: Maado
A45: Felicia | B45: Cohen
A46: Henry | B46: Wagner
A47: Wesley | B47: Baldwin
A48: Sophie | B48: Walsh
A49: Evelyn | B49: Scott
A50: Hugh | B50: Mason
A52: Extract first name and capitalize only first letter:
A53: Names | B53: First
A54: JIMMY GARZA
A55: EMMA ELLA POTTER
A56: ROLANDO ROBBINS
A57: LOUISE MAADO
A58: FELICIA J COHEN
A59: HENRY WAGNER
A60: WESLEY BALDWIN
A61: SOPHIE THOMAS WALSH
A62: EVELYN SCOTT
A63: HUGH MASON
A65: Extract first and middle name: Important to give it more than one example.
A66: Names | B66: First
A67: JIMMY GARZA
A68: EMMA ELLA POTTER
A69: ROLANDO ROBBINS
A70: LOUISE MAADO
A71: FELICIA J COHEN
A72: HENRY WAGNER
A73: WESLEY BALDWIN
A74: SOPHIE THOMAS WALSH
A75: EVELYN SCOTT
A76: HUGH MASON
A78: Extract years:
A79: Dates | B79: Years
A80: 2013-10-30
A81: 2014-10-30
A82: 2015-10-30
A83: 2016-10-30
A84: 2017-10-30
A85: 2018-10-30
A87: For more examples about how Flash Fill works:
A88: What's New In Excel 2013: Flash Fill, Functions, Data Model, PowerPivot, New Charts, Table Slicers..
A89: Flash Fill (0:33:54 min mark)

Sheet FlashFill (an)
A1: Example 4 from Video Excel Basics 13:
A2: Joining a first and last name: 1) equal sign, 2) cell, 3) Join Symbol, 4) Text in quotes
A3: First | B3: Last | C3: Join | E3: Last, First
A4: Jimmy | B4: Garza | C4: =A4&" "&B4 -> Jimmy Garza | D4: or | E4: =B4&", "&A4 -> Garza, Jimmy
A5: Emma | B5: Potter | C5: =A5&" "&B5 -> Emma Potter | E5: Potter, Emma
A6: Rolando | B6: Robbins | C6: Rolando Robbins | E6: Robbins, Rolando
A7: Louise | B7: Maado | C7: Louise Maado | E7: Maado, Louise
A8: Felicia | B8: Cohen | C8: Felicia Cohen | E8: Cohen, Felicia
A9: Henry | B9: Wagner | C9: Henry Wagner | E9: Wagner, Henry
A10: Wesley | B10: Baldwin | C10: Wesley Baldwin | E10: Baldwin, Wesley
A11: Sophie | B11: Walsh | C11: Sophie Walsh | E11: Walsh, Sophie
A12: Evelyn | B12: Scott | C12: Evelyn Scott | E12: Scott, Evelyn
A13: Hugh | B13: Mason | C13: Hugh Mason | E13: Mason, Hugh
A15: What use formulas?
A16: If the source data will be changing.
A17: In our case we had a template where we always changed the names and so formulas worked great form automatically updating.
A19: But if it is a ONE-TIME EVENT, use Flash Fill (New In Excel 2013)
A20: Flash Fill = Program by example
A21: You give Excel one or more examples, and it tries to figure out what you want.
A22: If Excel can see your "Pattern", it will do the action.
A24: Combine:
A25: First | B25: Last | C25: =A25&" "& B25 -> First Last
A26: Jimmy | B26: Garza
A27: Emma | B27: Potter
A28: Rolando | B28: Robbins
A29: Louise | B29: Maado
A30: Felicia | B30: Cohen
A31: Henry | B31: Wagner
A32: Wesley | B32: Baldwin
A33: Sophie | B33: Walsh
A34: Evelyn | B34: Scott
A35: Hugh | B35: Mason
A37: Combine and add text:
A38: First | B38: Last | C38: =B38&", "&A38 -> Last, First
A39: Jimmy | B39: Garza
A40: Emma | B40: Potter
A41: Rolando | B41: Robbins
A42: Louise | B42: Maado
A43: Felicia | B43: Cohen
A44: Henry | B44: Wagner
A45: Wesley | B45: Baldwin
A46: Sophie | B46: Walsh
A47: Evelyn | B47: Scott
A48: Hugh | B48: Mason
A50: Extract first name and capitalize only first letter:
A51: Names | B51: First
A52: JIMMY GARZA
A53: EMMA ELLA POTTER
A54: ROLANDO ROBBINS
A55: LOUISE MAADO
A56: FELICIA J COHEN
A57: HENRY WAGNER
A58: WESLEY BALDWIN
A59: SOPHIE THOMAS WALSH
A60: EVELYN SCOTT
A61: HUGH MASON
A63: Extract first and middle name: Important to give it more than one example.
A64: Names | B64: First
A65: JIMMY GARZA
A66: EMMA ELLA POTTER
A67: ROLANDO ROBBINS
A68: LOUISE MAADO
A69: FELICIA J COHEN
A70: HENRY WAGNER
A71: WESLEY BALDWIN
A72: SOPHIE THOMAS WALSH
A73: EVELYN SCOTT
A74: HUGH MASON
A76: Extract years:
A77: Dates | B77: Years
A78: 2013-10-30
A79: 2014-10-30
A80: 2015-10-30
A81: 2016-10-30
A82: 2017-10-30
A83: 2018-10-30
A85: For more examples about how Flash Fill works:
A86: What's New In Excel 2013: Flash Fill, Functions, Data Model, PowerPivot, New Charts, Table Slicers..
A87: Flash Fill (0:33:54 min mark)

Sheet HW ==>>

Sheet HW(1)
A1: Use Style and Number formatting to make this Income Statement easy to understand.
B4: Jan | C4: Feb | D4: Mar | E4: Apr
A5: Net Sales | B5: 5689 | C5: 2569 | D5: 6587 | E5: 8700
A6: Operating Expenses | B6: 1801.15 | C6: 2099.15 | D6: 4100.3 | E6: 4245
A7: Administrating Expenses | B7: 537.8 | C7: 513.8 | D7: 1617.4 | E7: 1740
A8: Other | B8: 253.35 | C8: 385.35 | D8: =D5-D6-D7 -> 869.3 | E8: 1305
A9: Total Expenses | B9: =SUM(B6:B8) -> 2592.3 | C9: 2998.3 | D9: 6587 | E9: 7290
A10: Net Income | B10: =B5-B9 -> 3096.7 | C10: -429.3 | D10: 0 | E10: 1410

Sheet HW(1an)
A1: Use Style and Number formatting to make this Income Statement easy to understand.
B4: Jan | C4: Feb | D4: Mar | E4: Apr
A5: Net Sales | B5: 5689 | C5: 2569 | D5: 6587 | E5: 8700
A6: Operating Expenses | B6: 1801.15 | C6: 2099.15 | D6: 4100.3 | E6: 4245
A7: Administrating Expenses | B7: 537.8 | C7: 513.8 | D7: 1617.4 | E7: 1740
A8: Other | B8: 253.35 | C8: 385.35 | D8: =D5-D6-D7 -> 869.3 | E8: 1305
A9: Total Expenses | B9: =SUM(B6:B8) -> 2592.3 | C9: 2998.3 | D9: 6587 | E9: 7290
A10: Net Income | B10: =B5-B9 -> 3096.7 | C10: -429.3 | D10: 0 | E10: 1410
C12: or
B14: Jan | C14: Feb | D14: Mar | E14: Apr
A15: Net Sales | B15: 5689 | C15: 2569 | D15: 6587 | E15: 8700
A16: Operating Expenses | B16: 1801.15 | C16: 2099.15 | D16: 4100.3 | E16: 4245
A17: Administrating Expenses | B17: 537.8 | C17: 513.8 | D17: 1617.4 | E17: 1740
A18: Other | B18: 253.35 | C18: 385.35 | D18: =D15-D16-D17 -> 869.3 | E18: 1305
A19: Total Expenses | B19: =SUM(B16:B18) -> 2592.3 | C19: 2998.3 | D19: 6587 | E19: 7290
A20: Net Income | B20: =B15-B19 -> 3096.7 | C20: -429.3 | D20: 0 | E20: 1410
C22: or
B24: Jan | C24: Feb | D24: Mar | E24: Apr
A25: Net Sales | B25: 5689 | C25: 2569 | D25: 6587 | E25: 8700
A26: Operating Expenses | B26: 1801.15 | C26: 2099.15 | D26: 4100.3 | E26: 4245
A27: Administrating Expenses | B27: 537.8 | C27: 513.8 | D27: 1617.4 | E27: 1740
A28: Other | B28: 253.35 | C28: 385.35 | D28: =D25-D26-D27 -> 869.3 | E28: 1305
A29: Total Expenses | B29: =SUM(B26:B28) -> 2592.3 | C29: 2998.3 | D29: 6587 | E29: 7290
A30: Net Income | B30: =B25-B29 -> 3096.7 | C30: -429.3 | D30: 0 | E30: 1410
C32: or
B34: Jan | C34: Feb | D34: Mar | E34: Apr
A35: Net Sales | B35: 5689 | C35: 2569 | D35: 6587 | E35: 8700
A36: Operating Expenses | B36: 1801.15 | C36: 2099.15 | D36: 4100.3 | E36: 4245
A37: Administrating Expenses | B37: 537.8 | C37: 513.8 | D37: 1617.4 | E37: 1740
A38: Other | B38: 253.35 | C38: 385.35 | D38: =D35-D36-D37 -> 869.3 | E38: 1305
A39: Total Expenses | B39: =SUM(B36:B38) -> 2592.3 | C39: 2998.3 | D39: 6587 | E39: 7290
A40: Net Income | B40: =B35-B39 -> 3096.7 | C40: -429.3 | D40: 0 | E40: 1410

Sheet HW(2)
A1: Icrease the column widths and add Word Wrap to the filed names at the top of each column.
A3: Boomerang Product Name | B3: Employee Name | C3: Sales Amount
A4: Majestic Beaut | B4: Jo | C4: 505
A5: Delicate Arch Deluxe | B5: Moe | C5: 657
A6: Carlota Doublers | B6: Sheliadawn | C6: 329
A7: Majestic Beaut | B7: Tina | C7: 618
A8: Delicate Arch Deluxe | B8: Tina | C8: 888
A9: Delicate Arch Deluxe | B9: Moe | C9: 138
A10: Quad Freestyle | B10: Sheliadawn | C10: 125
A11: Quad Freestyle | B11: Sheliadawn | C11: 238

Sheet HW(2an)
A1: Icrease the column widths and add Word Wrap to the filed names at the top of each column.
A3: Boomerang Product Name | B3: Employee Name | C3: Sales Amount
A4: Majestic Beaut | B4: Jo | C4: 505
A5: Delicate Arch Deluxe | B5: Moe | C5: 657
A6: Carlota Doublers | B6: Sheliadawn | C6: 329
A7: Majestic Beaut | B7: Tina | C7: 618
A8: Delicate Arch Deluxe | B8: Tina | C8: 888
A9: Delicate Arch Deluxe | B9: Moe | C9: 138
A10: Quad Freestyle | B10: Sheliadawn | C10: 125
A11: Quad Freestyle | B11: Sheliadawn | C11: 238

Sheet HW(3)
A1: 1) Create a Proper data set with the field names Invoice Date, Invoice number, Due Date, TODAY and Days Past Due.
A2: 2) Enter the records as seen in the picture to the right.
A3: 3) In the TODAY column create a formula that uses the TODAY function .
A4: 4) In the Days Past Due column create a formulas that calculates the number of days that the invoice is late.
A5: 5) In the Days Past Due column add a conditional formatting that shows invoice that are 70 days or more past due.

Sheet HW(3an)
A1: 1) Create a Proper data set with the field names Invoice Date, Invoice number, Due Date, TODAY and Days Past Due.
A2: 2) Enter the records as seen in the picture to the right.
A3: 3) In the TODAY column create a formula that uses the TODAY function .
A4: 4) In the Days Past Due column create a formulas that calculates the number of days that the invoice is late.
A5: 5) In the Days Past Due column add a conditional formatting that shows invoice that are 70 days or more past due.
A8: Invoice Date | B8: Invoice number | C8: Due Date | D8: TODAY | E8: Days Past Due
A9: 2013-07-12 | B9: 54891 | C9: 2013-07-27 | D9: =TODAY() -> 2013-10-31 | E9: =D9-C9 -> 96
A10: 2013-08-06 | B10: 54901 | C10: 2013-08-21 | D10: 2013-10-31 | E10: 71
A11: 2013-09-04 | B11: 54948 | C11: 2013-09-19 | D11: 2013-10-31 | E11: 42
A12: 2013-09-25 | B12: 54984 | C12: 2013-10-10 | D12: 2013-10-31 | E12: 21
A13: 2013-10-01 | B13: 55023 | C13: 2013-10-16 | D13: 2013-10-31 | E13: 15
E15: or
A17: Invoice Date | B17: Invoice number | C17: Due Date | D17: TODAY | E17: Days Past Due | G17: Criteria:
A18: 2013-07-12 | B18: 54891 | C18: 2013-07-27 | D18: =TODAY() -> 2013-10-31 | E18: =D18-C18 -> 96 | G18: 70
A19: 2013-08-06 | B19: 54901 | C19: 2013-08-21 | D19: 2013-10-31 | E19: 71
A20: 2013-09-04 | B20: 54948 | C20: 2013-09-19 | D20: 2013-10-31 | E20: 42
A21: 2013-09-25 | B21: 54984 | C21: 2013-10-10 | D21: 2013-10-31 | E21: 21
A22: 2013-10-01 | B22: 55023 | C22: 2013-10-16 | D22: 2013-10-31 | E22: 15

Sheet HW(4)
A1: 1) In the green cells in the Employee column, create a formula to join the first and last name with a space between the first and last name.
A2: 2) In the green cells in the Hours Worked column, create a formula that calculate the number of hours worked,
A3: 3) In the green cells in the Gross Pay column, create a formula that multiplies Hours Worked by Wage. Use the ROUND function and round to the penny.
A4: 4) In the green cells in the Deduction column, create a formula that multiplies Gross Pay by Tax Rate. Use the ROUND function and round to the penny.
A5: 5) In the green cells in the Day's Pay column, create a formula to calculate Gross Pay minus Deduction.
J6: Tax Rate
J7: 0.0765
A9: First | B9: Last | D9: Employee | E9: Wage | F9: Time In | G9: Time Out | H9: Hours Worked | I9: Gross Pay | J9: Deduction | K9: Day's Pay
A10: Carroll | B10: Stanley | E10: 24.94 | F10: 08:00:00 | G10: 15:30:00
A11: Anne | B11: Ramos | E11: 18.14 | F11: 09:00:00 | G11: 14:30:00
A12: Blanche | B12: Sanchez | E12: 17.94 | F12: 07:30:00 | G12: 15:00:00
A13: Karla | B13: Fletcher | E13: 26.7 | F13: 08:00:00 | G13: 13:30:00
A14: Devin | B14: Smith | E14: 24.3 | F14: 09:00:00 | G14: 14:30:00
A15: Edna | B15: Hansen | E15: 22.85 | F15: 08:00:00 | G15: 18:00:00
A16: Moses | B16: Swanson | E16: 26.98 | F16: 06:30:00 | G16: 11:30:00
A17: Sherman | B17: Moss | E17: 17.71 | F17: 08:00:00 | G17: 13:00:00
A18: Amber | B18: Rios | E18: 20.12 | F18: 07:00:00 | G18: 16:30:00
A19: Lindsey | B19: Powers | E19: 23.69 | F19: 08:00:00 | G19: 15:00:00

Sheet HW(4an)
A1: 1) In the green cells in the Employee column, create a formula to join the first and last name with a space between the first and last name.
A2: 2) In the green cells in the Hours Worked column, create a formula that calculate the number of hours worked,
A3: 3) In the green cells in the Gross Pay column, create a formula that multiplies Hours Worked by Wage. Use the ROUND function and round to the penny.
A4: 4) In the green cells in the Deduction column, create a formula that multiplies Gross Pay by Tax Rate. Use the ROUND function and round to the penny.
A5: 5) In the green cells in the Day's Pay column, create a formula to calculate Gross Pay minus Deduction.
J6: Tax Rate
J7: 0.0765
A9: First | B9: Last | D9: Employee | E9: Wage | F9: Time In | G9: Time Out | H9: Hours Worked | I9: Gross Pay | J9: Deduction | K9: Day's Pay
A10: Carroll | B10: Stanley | D10: =A10&" "&B10 -> Carroll Stanley | E10: 24.94 | F10: 08:00:00 | G10: 15:30:00 | H10: =(G10-F10)*24 -> 7.5 | I10: =ROUND(H10*E10,2) -> 187.05 | J10: =ROUND(I10*$J$7,2) -> 14.31 | K10: =I10-J10 -> 172.74
A11: Anne | B11: Ramos | D11: Anne Ramos | E11: 18.14 | F11: 09:00:00 | G11: 14:30:00 | H11: 5.5 | I11: 99.77 | J11: 7.63 | K11: 92.14
A12: Blanche | B12: Sanchez | D12: Blanche Sanchez | E12: 17.94 | F12: 07:30:00 | G12: 15:00:00 | H12: 7.5 | I12: 134.55 | J12: 10.29 | K12: 124.26
A13: Karla | B13: Fletcher | D13: Karla Fletcher | E13: 26.7 | F13: 08:00:00 | G13: 13:30:00 | H13: 5.5 | I13: 146.85 | J13: 11.23 | K13: 135.62
A14: Devin | B14: Smith | D14: Devin Smith | E14: 24.3 | F14: 09:00:00 | G14: 14:30:00 | H14: 5.5 | I14: 133.65 | J14: 10.22 | K14: 123.43
A15: Edna | B15: Hansen | D15: Edna Hansen | E15: 22.85 | F15: 08:00:00 | G15: 18:00:00 | H15: 10 | I15: 228.5 | J15: 17.48 | K15: 211.02
A16: Moses | B16: Swanson | D16: Moses Swanson | E16: 26.98 | F16: 06:30:00 | G16: 11:30:00 | H16: 5 | I16: 134.9 | J16: 10.32 | K16: 124.58
A17: Sherman | B17: Moss | D17: Sherman Moss | E17: 17.71 | F17: 08:00:00 | G17: 13:00:00 | H17: 5 | I17: 88.55 | J17: 6.77 | K17: 81.78
A18: Amber | B18: Rios | D18: Amber Rios | E18: 20.12 | F18: 07:00:00 | G18: 16:30:00 | H18: 9.5 | I18: 191.14 | J18: 14.62 | K18: 176.52
A19: Lindsey | B19: Powers | D19: Lindsey Powers | E19: 23.69 | F19: 08:00:00 | G19: 15:00:00 | H19: 7 | I19: 165.83 | J19: 12.69 | K19: 153.14

Sheet HW(5)
A1: Fix the formula in cell D5.
A4: Beg Qty | B4: End Qty | C4: Value Each | D4: COGS
A5: 545 | B5: 274 | C5: 105 | D5: =A5-B5*C5 -> -28225

Sheet HW(5an)
A1: Fix the formula in cell D5.
A4: Beg Qty | B4: End Qty | C4: Value Each | D4: COGS
A5: 545 | B5: 274 | C5: 105 | D5: =(A5-B5)*C5 -> 28455

Sheet HW(6)
A1: Extract first and middle name: Important to give it more than one example.
A2: Names | B2: First
A3: JIMMY GARZA
A4: EMMA ELLA POTTER
A5: ROLANDO ROBBINS
A6: LOUISE MAADO
A7: FELICIA J COHEN
A8: HENRY WAGNER
A9: WESLEY BALDWIN
A10: SOPHIE THOMAS WALSH
A11: EVELYN SCOTT
A12: HUGH MASON
A14: Extract years:
A15: Dates | B15: Years
A16: 2013-10-30
A17: 2014-10-30
A18: 2015-10-30
A19: 2016-10-30
A20: 2017-10-30
A21: 2018-10-30

Sheet HW(6an)
A1: Extract first and middle name: Important to give it more than one example.
B2: Flash Fill:
A3: Names | B3: First
A4: JIMMY GARZA | B4: Jimmy
A5: EMMA ELLA POTTER | B5: Emma Ella
A6: ROLANDO ROBBINS | B6: Rolando
A7: LOUISE MAADO | B7: Louise
A8: FELICIA J COHEN | B8: Felicia J
A9: HENRY WAGNER | B9: Henry
A10: WESLEY BALDWIN | B10: Wesley
A11: SOPHIE THOMAS WALSH | B11: Sophie Thomas
A12: EVELYN SCOTT | B12: Evelyn
A13: HUGH MASON | B13: Hugh
A15: Extract years:
B16: Flash Fill:
A17: Dates | B17: Years
A18: 2013-10-30 | B18: 2013
A19: 2014-10-30 | B19: 2014
A20: 2015-10-30 | B20: 2015
A21: 2016-10-30 | B21: 2016
A22: 2017-10-30 | B22: 2017
A23: 2018-10-30 | B23: 2018
